bitfinex/quotes_SOLUSD_20250112
["timestamp","ask_amount","ask_price","bid_price","bid_amount"]
[1736665307090,8.92971867,186.41,186.37,216.5]
[1736665309623,8.92971867,186.4,186.37,216.5]
[1736665310422,8.92971867,186.41,186.37,216.5]
[1736665311100,8.92971867,186.39,186.37,216.5]
[1736665311310,8.92971867,186.38,186.37,81.6]
[1736665315594,20.0,186.43,186.37,81.6]
[1736665315908,8.92971867,186.42,186.37,217.30464403]
[1736665316114,8.92971867,186.42,186.38,0.80451914]
[1736665317831,8.92971867,186.41,186.38,82.40451914]
[1736665320229,20.0,186.44,186.38,217.30451914]
[1736665320408,8.92971867,186.42,186.38,216.5]
[1736665320637,8.92971867,186.43,186.39,0.80447363]
[1736665322029,20.0,186.44,186.39,0.80447363]
[1736665322236,33.39880139,186.47,186.4,1.6134]
[1736665322433,8.92971867,186.46,186.41,0.80434458]
[1736665323147,8.92971867,186.45,186.41,0.80434458]
[1736665323639,8.92971867,186.46,186.41,0.80434458]
[1736665324012,33.39880139,186.47,186.43,8.92971867]
[1736665324211,33.39880139,186.47,186.44,8.92971867]
[1736665324438,8.92971867,186.5,186.44,8.92971867]
[1736665324941,8.92971867,186.49,186.43,225.42971867]
[1736665325539,8.92971867,186.49,186.44,0.80424891]
[1736665326069,8.92971867,186.48,186.44,0.80424891]
[1736665326266,8.92971867,186.48,186.43,216.5]
[1736665326958,8.92971867,186.48,186.44,0.80427704]
[1736665327113,44.6994625,186.51,186.43,81.6]
[1736665327114,8.92971867,186.46,186.43,81.6]
[1736665327314,8.92971867,186.46,186.4,1.6134]
[1736665327315,8.92971867,186.44,186.4,218.1134]
[1736665327650,8.92971867,186.42,186.4,83.2134]
[1736665327856,8.92971867,186.43,186.4,83.2134]
[1736665330147,8.92971867,186.42,186.4,83.2134]
[1736665333254,8.92971867,186.41,186.38,134.9]
[1736665333548,8.92971867,186.39,186.35,218.0628]
[1736665333850,8.92971867,186.36,186.35,81.6]
[1736665334622,8.92971867,186.36,186.3,1.5628]
[1736665334851,8.92971867,186.31,186.3,1.5628]
[1736665335463,8.92971867,186.32,186.3,1.5628]
[1736665336555,20.0,186.36,186.3,1.5628]
[1736665336743,8.92971867,186.33,186.3,1.5628]
[1736665337124,8.92971867,186.32,186.3,1.5628]
[1736665339461,8.92971867,186.33,186.3,1.5628]
[1736665340158,8.92971867,186.32,186.3,1.5628]
[1736665345166,8.92971867,186.32,186.3,83.1628]
[1736665347256,8.92971867,186.33,186.3,83.1628]
[1736665348660,1.6475,186.41,186.31,217.30489752]
[1736665348962,8.92971867,186.37,186.31,225.42971867]
[1736665349941,8.92971867,186.37,186.32,0.80474074]
[1736665350470,8.92971867,186.36,186.31,216.5]
[1736665352070,8.92971867,186.34,186.31,81.6]
[1736665355269,8.92971867,186.35,186.31,216.5]
[1736665355574,8.92971867,186.36,186.31,216.5]
[1736665358200,8.92971867,186.36,186.32,0.80477493]
[1736665358679,8.92971867,186.37,186.32,0.80477493]
[1736665359650,20.0,186.39,186.32,91.3344936]
[1736665359856,8.92971867,186.38,186.32,226.2344936]
[1736665360053,8.92971867,186.38,186.32,225.42971867]
[1736665360263,8.92971867,186.38,186.33,0.80466377]
[1736665361982,8.92971867,186.39,186.33,217.30466377]
[1736665362186,8.92971867,186.39,186.33,216.5]
[1736665362357,8.92971867,186.39,186.34,0.80466238]
[1736665366087,8.92971867,186.39,186.34,217.30466238]
[1736665366383,8.92971867,186.39,186.34,216.5]
[1736665366580,8.92971867,186.39,186.35,0.80464571]
[1736665367774,8.92971867,186.39,186.34,216.5]
[1736665368081,8.92971867,186.38,186.34,216.5]
[1736665369092,8.92971867,186.37,186.34,216.5]
[1736665369292,8.92971867,186.36,186.34,216.5]
[1736665370888,8.92971867,186.35,186.34,216.5]
[1736665375110,8.92971867,186.35,186.34,81.6]
[1736665384346,8.92971867,186.35,186.3,83.1628]
[1736665384650,8.92971867,186.32,186.3,83.1628]
[1736665385119,8.92971867,186.31,186.3,83.1628]
[1736665385845,20.0,186.36,186.3,83.1628]
[1736665386162,8.92971867,186.33,186.3,83.1628]
[1736665392164,20.0,186.36,186.3,83.1628]
[1736665392327,8.92971867,186.34,186.3,83.1628]
[1736665393958,8.92971867,186.33,186.3,83.1628]
[1736665394136,8.92971867,186.32,186.3,81.6]
[1736665398355,8.92971867,186.33,186.3,81.6]
[1736665398656,28.92971867,186.36,186.31,0.80491359]
[1736665399242,8.92971867,186.35,186.31,0.80491359]
[1736665399630,20.0,186.36,186.31,0.80491359]
[1736665399631,86.4,186.43,186.31,218.88551359]
[1736665399835,81.9,186.43,186.31,227.01031867]
[1736665400159,8.92971867,186.37,186.31,227.01031867]
[1736665400934,8.92971867,186.37,186.32,0.80472437]
[1736665401438,8.1017,186.44,186.33,8.92971867]
[1736665401676,20.0,186.41,186.34,9.73439128]
[1736665401965,8.92971867,186.4,186.34,226.23439128]
[1736665402258,20.0,186.41,186.34,225.42971867]
[1736665402460,8.92971867,186.4,186.34,225.42971867]
[1736665403236,8.92971867,186.4,186.35,0.80458336]
[1736665403658,8.92971867,186.41,186.35,226.23430203]
[1736665403859,8.92971867,186.41,186.35,225.42971867]
[1736665404039,8.92971867,186.41,186.36,0.80457407]
[1736665404854,8.92971867,186.4,186.35,216.5]
[1736665406958,8.92971867,186.4,186.36,82.40463026]
[1736665407644,20.0,186.45,186.36,82.40463026]
[1736665407845,8.92971867,186.41,186.36,82.40463026]
[1736665409866,8.92971867,186.4,186.36,82.40463026]
[1736665417576,20.0,186.45,186.36,82.40463026]
[1736665417756,8.92971867,186.41,186.36,82.40463026]
[1736665418584,8.92971867,186.4,186.36,82.40463026]
[1736665421190,2.10716845,186.48,186.37,34.30440267]
[1736665421469,8.92971867,186.45,186.39,225.42971867]
[1736665421670,8.92971867,186.45,186.4,0.80440288]
[1736665424086,8.92971867,186.44,186.4,82.40440288]
[1736665424783,8.92971867,186.44,186.4,81.6]
[1736665424991,8.92971867,186.43,186.4,81.6]
[1736665428963,8.92971867,186.42,186.4,81.6]
[1736665431769,20.0,186.45,186.4,81.6]
[1736665431973,8.92971867,186.42,186.4,81.6]
[1736665432487,8.92971867,186.43,186.4,81.6]
[1736665433971,8.92971867,186.42,186.4,81.6]
[1736665435857,8.92971867,186.43,186.4,81.6]
[1736665440379,8.12510535,186.52,186.4,217.30445805]
[1736665440698,8.92971867,186.46,186.4,225.42971867]
[1736665441783,8.92971867,186.46,186.41,0.80434804]
[1736665442493,1.559,186.53,186.42,1.5854]
[1736665442494,8.92971867,186.47,186.42,1.5854]
[1736665442695,8.92971867,186.47,186.43,0.80428697]
[1736665445006,8.92971867,186.46,186.42,1.5854]
[1736665445171,8.92971867,186.45,186.42,218.0854]
[1736665445366,8.92971867,186.44,186.42,218.0854]
[1736665445571,20.0,186.51,186.42,83.1854]
[1736665445572,8.92971867,186.43,186.42,83.1854]
[1736665445820,8.92971867,186.43,186.42,81.6]
[1736665454009,81.9,186.52,186.42,81.6]
[1736665454521,8.92971867,186.45,186.42,81.6]
[1736665456787,8.92971867,186.47,186.43,0.80434545]
[1736665456987,20.0,186.53,186.43,83.93404545]
[1736665457322,8.92971867,186.49,186.43,227.76376412]
[1736665457501,8.92971867,186.49,186.43,226.95941867]
[1736665458792,8.92971867,186.5,186.44,90.52971867]
[1736665458993,8.92971867,186.5,186.45,0.80426208]
[1736665459623,8.92971867,186.51,186.45,9.73398075]
[1736665459920,20.0,186.53,186.46,8.92971867]
[1736665460094,8.92971867,186.52,186.47,0.80410089]
[1736665461227,8.92971867,186.52,186.47,217.30410089]
[1736665461517,8.92971867,186.51,186.47,216.5]
[1736665463599,8.92971867,186.5,186.47,216.5]
[1736665464939,8.92971867,186.49,186.47,81.6]
[1736665465093,8.92971867,186.48,186.47,81.6]
[1736665470132,20.0,186.53,186.47,81.6]
[1736665470332,8.92971867,186.52,186.48,82.40406881]
[1736665471505,8.92971867,186.51,186.48,82.40406881]
[1736665472824,32.25302343,186.56,186.48,82.40406881]
[1736665473000,8.92971867,186.52,186.48,82.40406881]
[1736665476715,8.92971867,186.53,186.48,82.40406881]
[1736665478917,8.92971867,186.53,186.49,1.5662]
[1736665482826,8.92971867,186.53,186.49,83.1662]
[1736665487340,41.1827421,186.56,186.5,250.01065068]
[1736665487514,41.1827421,186.56,186.51,8.92971867]
[1736665487722,41.1827421,186.56,186.52,82.40390392]
[1736665488741,8.92971867,186.56,186.52,82.40390392]
[1736665488938,8.92971867,186.57,186.52,82.40390392]
[1736665491644,8.92971867,186.58,186.52,226.23362259]
[1736665491822,8.92971867,186.58,186.52,225.42971867]
[1736665492016,8.92971867,186.58,186.53,0.80381349]
[1736665492519,8.92971867,186.58,186.53,9.73353216]
[1736665493220,20.0,186.62,186.53,226.23353216]
[1736665493418,8.92971867,186.58,186.53,225.42971867]
[1736665493644,8.92971867,186.58,186.54,0.80378776]
[1736665493813,8.92971867,186.58,186.53,225.42971867]
[1736665494016,8.92971867,186.58,186.53,216.5]
[1736665495240,8.92971867,186.58,186.54,0.80383507]
[1736665495443,8.92971867,186.58,186.53,216.5]
[1736665496052,20.0,186.63,186.53,216.5]
[1736665496355,8.92971867,186.59,186.54,82.40383441]
[1736665500552,20.0,186.63,186.55,1.5598]
[1736665500553,8.92971867,186.6,186.55,1.5598]
[1736665501041,8.92971867,186.6,186.55,83.1598]
[1736665501742,20.0,186.63,186.55,83.1598]
[1736665501950,8.92971867,186.6,186.55,83.1598]
[1736665502247,8.92971867,186.59,186.55,83.1598]
[1736665505258,8.92971867,186.6,186.55,83.1598]
[1736665505546,8.92971867,186.6,186.56,0.80374665]
[1736665506129,8.92971867,186.6,186.55,83.96355731]
[1736665508653,8.92971867,186.59,186.55,83.1598]
[1736665509829,8.92971867,186.57,186.55,83.1598]
[1736665510157,8.92971867,186.56,186.55,81.6]
[1736665510338,8.92971867,186.56,186.5,83.1139]
[1736665510665,8.92971867,186.53,186.5,83.1139]
[1736665513569,8.92971867,186.54,186.5,83.1139]
[1736665516233,8.92971867,186.53,186.5,83.1139]
[1736665524264,8.92971867,186.54,186.5,83.1139]
[1736665525149,8.92971867,186.53,186.5,83.1139]
[1736665530169,8.92971867,186.53,186.5,81.6]
[1736665530379,8.92971867,186.52,186.5,81.6]
[1736665531670,8.92971867,186.51,186.45,83.2511]
[1736665531971,8.92971867,186.47,186.45,81.6]
[1736665532977,8.92971867,186.46,186.45,81.6]
[1736665533680,8.92971867,186.46,186.42,216.5]
[1736665533883,2.19413775,186.53,186.42,216.5]
[1736665533884,8.92971867,186.45,186.42,216.5]
[1736665536757,8.92971867,186.45,186.42,81.6]
[1736665538252,8.92971867,186.44,186.42,81.6]
[1736665538449,8.92971867,186.43,186.4,81.6]
[1736665538649,8.92971867,186.41,186.4,81.6]
[1736665540582,8.92971867,186.42,186.4,81.6]
[1736665540755,8.92971867,186.43,186.4,81.6]
[1736665541085,8.92971867,186.44,186.4,81.6]
[1736665541781,8.92971867,186.43,186.4,81.6]
[1736665542163,8.92971867,186.42,186.4,81.6]
[1736665542569,8.92971867,186.41,186.4,81.6]
[1736665543260,8.92971867,186.41,186.36,81.6]
[1736665543466,8.92971867,186.38,186.36,81.6]
[1736665544665,8.92971867,186.37,186.33,81.6]
[1736665547870,8.92971867,186.38,186.33,81.6]
[1736665550080,8.92971867,186.39,186.34,0.80475893]
[1736665550281,8.92971867,186.4,186.34,91.3344776]
[1736665550487,8.92971867,186.39,186.34,81.6]
[1736665551595,8.92971867,186.38,186.34,81.6]
[1736665552673,81.9,186.45,186.34,81.6]
[1736665552674,8.92971867,186.39,186.34,81.6]
[1736665558506,8.92971867,186.4,186.34,81.6]
[1736665558680,8.92971867,186.4,186.34,91.33444574]
[1736665560500,8.92971867,186.41,186.35,90.52971867]
[1736665563110,8.92971867,186.42,186.36,91.3343807]
[1736665564013,8.92971867,186.42,186.36,90.52971867]
[1736665564217,8.92971867,186.41,186.36,81.6]
[1736665565823,8.92971867,186.39,186.36,81.6]
[1736665568017,8.92971867,186.4,186.36,81.6]
[1736665576893,43.69987468,186.48,186.33,81.6]
[1736665576894,8.92971867,186.39,186.33,81.6]
[1736665578511,8.92971867,186.38,186.33,81.6]
[1736665581320,8.92971867,186.4,186.34,82.40478471]
[1736665584025,84.03547988,186.44,186.34,91.33450338]
[1736665584236,8.92971867,186.41,186.34,91.33450338]
[1736665584404,81.9,186.44,186.36,8.92971867]
[1736665584728,90.82971867,186.44,186.37,8.92971867]
[1736665585031,8.92971867,186.44,186.38,83.1555]
[1736665586423,8.92971867,186.43,186.38,83.1555]
[1736665587417,8.92971867,186.43,186.38,83.96003338]
[1736665589626,8.92971867,186.43,186.38,83.1555]
[1736665589833,8.92971867,186.39,186.34,216.5]
[1736665591036,8.92971867,186.38,186.34,216.5]
[1736665591335,8.92971867,186.37,186.34,216.5]
[1736665596415,8.92971867,186.36,186.34,81.6]
[1736665597427,8.92971867,186.37,186.34,81.6]
[1736665598210,8.92971867,186.36,186.34,81.6]
[1736665600522,8.92971867,186.37,186.31,90.52971867]
[1736665600936,8.92971867,186.37,186.31,81.6]
[1736665601119,8.92971867,186.37,186.31,90.52971867]
[1736665606465,8.92971867,186.37,186.31,81.6]
[1736665607837,8.92971867,186.37,186.32,82.40482141]
[1736665608428,8.92971867,186.38,186.32,91.33454008]
[1736665609454,8.92971867,186.37,186.32,82.40482141]
[1736665611458,8.92971867,186.38,186.32,82.40482141]
[1736665612251,8.92971867,186.38,186.32,91.33454008]
[1736665612551,8.92971867,186.38,186.32,82.40482141]
[1736665623571,20.0,186.4,186.33,10.44191867]
[1736665623745,8.92971867,186.41,186.35,8.92971867]
[1736665624154,8.92971867,186.41,186.34,33.51132571]
[1736665624371,8.92971867,186.4,186.34,32.70660267]
[1736665626168,8.92971867,186.4,186.34,33.51131889]
[1736665627252,8.92971867,186.4,186.34,24.58160022]
[1736665627253,4.83896763,186.4,186.34,24.58160022]
[1736665627645,8.92971867,186.39,186.33,89.3941]
[1736665627847,8.92971867,186.38,186.33,83.1122]
[1736665633984,8.92971867,186.39,186.33,83.1122]
[1736665634482,8.92971867,186.37,186.33,83.1122]
[1736665634685,20.0,186.4,186.33,83.1122]
[1736665634977,8.92971867,186.37,186.33,83.1122]
[1736665635179,8.92971867,186.36,186.33,83.1122]
[1736665637980,8.92971867,186.35,186.33,83.1122]
[1736665638673,8.92971867,186.36,186.33,83.1122]
[1736665642477,5.25228267,186.36,186.33,83.1122]
[1736665643178,8.92971867,186.35,186.33,83.1122]
[1736665644074,8.92971867,186.35,186.33,81.6]
[1736665644258,8.92971867,186.34,186.33,81.6]
[1736665644460,8.92971867,186.34,186.29,83.1907]
[1736665644653,8.92971867,186.33,186.29,83.1907]
[1736665646378,8.92971867,186.32,186.29,1.5907]
[1736665646565,8.92971867,186.31,186.26,81.6]
[1736665646893,8.92971867,186.3,186.26,81.6]
[1736665648082,8.92971867,186.29,186.26,81.6]
[1736665648451,86.9,186.36,186.22,81.6]
[1736665648452,8.92971867,186.27,186.22,81.6]
[1736665648755,8.92971867,186.26,186.2,98.9712416]
[1736665649357,8.92971867,186.25,186.2,90.04152293]
[1736665649578,8.92971867,186.23,186.2,90.04152293]
[1736665649776,8.92971867,186.23,186.2,81.6]
[1736665649981,8.92971867,186.21,186.18,8.44152293]
[1736665650170,8.92971867,186.2,186.18,8.44152293]
[1736665650363,20.0,186.23,186.18,8.44152293]
[1736665650676,8.92971867,186.2,186.16,81.6]
[1736665651269,20.0,186.23,186.16,81.6]
[1736665651464,8.92971867,186.21,186.16,81.6]
[1736665652490,8.92971867,186.2,186.16,81.6]
[1736665653801,8.92971867,186.2,186.15,1.5344]
[1736665653802,8.92971867,186.17,186.13,81.6]
[1736665654388,8.92971867,186.16,186.13,81.6]
[1736665654879,8.92971867,186.15,186.09,81.6]
[1736665655070,8.92971867,186.15,186.09,90.52971867]
[1736665655271,8.92971867,186.14,186.09,81.6]
[1736665655663,8.92971867,186.15,186.09,90.52971867]
[1736665656269,35.71887468,186.21,186.09,81.6]
[1736665656270,20.0,186.18,186.09,81.6]
[1736665656486,8.92971867,186.14,186.09,81.6]
[1736665656653,8.92971867,186.14,186.07,145.36411867]
[1736665657162,8.92971867,186.16,186.1,8.92971867]
[1736665657359,8.92971867,186.15,186.09,8.92971867]
[1736665658282,8.92971867,186.14,186.08,115.1124984]
[1736665658461,8.92971867,186.14,186.08,105.376884]
[1736665658661,8.92971867,186.14,186.08,114.30660267]
[1736665661760,8.92971867,186.13,186.08,105.376884]
[1736665662388,8.92971867,186.14,186.08,114.30660267]
[1736665663073,8.92971867,186.12,186.08,81.6]
[1736665665383,8.92971867,186.11,186.08,81.6]
[1736665665908,8.92971867,186.12,186.08,81.6]
[1736665667964,21.5997,186.15,186.08,81.6]
[1736665668167,8.92971867,186.12,186.08,81.6]
[1736665670295,8.92971867,186.13,186.08,82.40585969]
[1736665670794,8.92971867,186.13,186.08,91.33557836]
[1736665671396,8.92971867,186.13,186.08,81.6]
[1736665673570,8.92971867,186.13,186.08,90.52971867]
[1736665674495,8.92971867,186.13,186.08,81.6]
[1736665676196,8.92971867,186.12,186.08,81.6]
[1736665678686,20.0,186.13,186.05,81.6]
[1736665678995,8.92971867,186.09,186.05,81.6]
[1736665679782,8.92971867,186.1,186.05,81.6]
[1736665680582,6.4085,186.18,186.04,64.59153296]
[1736665680583,8.92971867,186.08,186.04,64.59153296]
[1736665680784,8.92971867,186.07,186.04,64.59153296]
[1736665683373,8.92971867,186.06,186.04,64.59153296]
[1736665683579,8.92971867,186.07,186.04,64.59153296]
[1736665683775,8.92971867,186.06,186.04,64.59153296]
[1736665684306,6.6132,186.12,186.04,64.59153296]
[1736665684478,8.92971867,186.08,186.04,64.59153296]
[1736665686207,8.92971867,186.06,186.04,64.59153296]
[1736665686601,8.92971867,186.07,186.04,64.59153296]
[1736665687906,8.92971867,186.08,186.04,64.59153296]
[1736665688287,8.92971867,186.07,186.04,64.59153296]
[1736665689104,42.33207468,186.12,186.04,64.59153296]
[1736665689105,8.92971867,186.06,186.04,64.59153296]
[1736665689507,8.92971867,186.07,186.04,64.59153296]
[1736665691402,8.92971867,186.05,186.04,64.59153296]
[1736665694088,20.0,186.08,186.04,64.59153296]
[1736665694410,8.92971867,186.1,186.04,73.52125163]
[1736665695196,8.92971867,186.11,186.05,8.92971867]
[1736665696504,8.92971867,186.12,186.05,8.92971867]
[1736665697406,8.92971867,186.12,186.06,8.92971867]
[1736665697606,6.5137,186.17,186.05,23.776884]
[1736665697607,28.92971867,186.13,186.07,8.92971867]
[1736665698289,6.5137,186.17,186.04,64.59153296]
[1736665698290,8.92971867,186.11,186.04,64.59153296]
[1736665698489,8.92971867,186.11,186.05,8.92971867]
[1736665699282,8.92971867,186.11,186.04,64.59153296]
[1736665699483,8.92971867,186.11,186.04,73.52125163]
[1736665699688,8.92971867,186.1,186.04,73.52125163]
[1736665700408,8.92971867,186.11,186.04,73.52125163]
[1736665700713,8.92971867,186.1,186.04,73.52125163]
[1736665701712,8.92971867,186.11,186.04,73.52125163]
[1736665702209,8.92971867,186.1,186.04,73.52125163]
[1736665702688,8.92971867,186.11,186.04,73.52125163]
[1736665703501,8.92971867,186.11,186.05,0.80594838]
[1736665703901,20.0,186.15,186.06,32.70660267]
[1736665704203,8.92971867,186.13,186.06,32.70660267]
[1736665705310,20.0,186.15,186.04,64.59153296]
[1736665705311,20.0,186.15,186.08,32.70660267]
[1736665705614,8.92971867,186.14,186.08,23.776884]
[1736665705912,16.42544904,186.18,186.1,32.70660267]
[1736665706092,8.92971867,186.17,186.11,0.80574436]
[1736665706293,8.92971867,186.16,186.11,0.80574436]
[1736665706513,8.92971867,186.16,186.1,116.89520267]
[1736665706912,8.92971867,186.14,186.1,84.1886]
[1736665707118,8.92971867,186.13,186.1,84.1886]
[1736665707624,8.92971867,186.14,186.1,84.1886]
[1736665708921,8.92971867,186.15,186.1,84.1886]
[1736665709097,8.92971867,186.16,186.1,93.11831867]
[1736665710801,25.35516771,186.18,186.12,8.92971867]
[1736665711138,8.92971867,186.18,186.12,8.92971867]
[1736665711828,8.92971867,186.17,186.11,9.7354117]
[1736665712021,8.92971867,186.16,186.1,93.11831867]
[1736665712228,8.92971867,186.15,186.1,84.1886]
[1736665712420,8.92971867,186.14,186.1,84.1886]
[1736665714027,8.92971867,186.12,186.07,6.248]
[1736665715031,8.92971867,186.13,186.07,15.17771867]
[1736665715221,8.92971867,186.14,186.08,8.92971867]
[1736665715414,8.92971867,186.14,186.08,9.73551121]
[1736665715601,8.92971867,186.14,186.08,0.80579254]
[1736665715809,8.92971867,186.12,186.07,6.248]
[1736665716399,8.92971867,186.12,186.06,1.6123]
[1736665716915,23.776884,186.18,186.06,1.6123]
[1736665716916,8.92971867,186.14,186.07,9.73564157]
[1736665717106,8.92971867,186.13,186.07,0.8059229]
[1736665717425,8.92971867,186.12,186.06,10.54201867]
[1736665718218,8.92971867,186.13,186.06,10.54201867]
[1736665718405,8.92971867,186.13,186.06,1.6123]
[1736665718610,8.92971867,186.12,186.06,10.54201867]
[1736665719219,8.92971867,186.13,186.06,10.54201867]
[1736665722337,8.92971867,186.12,186.06,10.54201867]
[1736665722549,8.92971867,186.11,186.06,1.6123]
[1736665723745,8.92971867,186.12,186.06,10.54201867]
[1736665727941,8.92971867,186.12,186.06,1.6123]
[1736665729845,8.92971867,186.09,186.06,1.6123]
[1736665730042,81.9,186.17,186.06,1.6123]
[1736665730043,8.92971867,186.08,186.06,1.6123]
[1736665730352,8.92971867,186.07,186.04,64.59153296]
[1736665731426,8.92971867,186.05,186.04,64.59153296]
[1736665735249,8.92971867,186.06,186.04,64.59153296]
[1736665738451,20.0,186.1,186.04,64.59153296]
[1736665738630,8.92971867,186.08,186.04,64.59153296]
[1736665740154,20.0,186.09,186.04,64.59153296]
[1736665740355,8.92971867,186.09,186.05,1.6623]
[1736665740546,8.92971867,186.1,186.05,10.59201867]
[1736665740744,8.92971867,186.11,186.05,10.59201867]
[1736665742372,8.92971867,186.11,186.05,1.6623]
[1736665742573,81.9,186.18,186.08,8.92971867]
[1736665742743,24.68315616,186.22,186.11,8.92971867]
[1736665743072,24.68315616,186.22,186.12,8.92971867]
[1736665743073,8.92971867,186.18,186.12,8.92971867]
[1736665743380,8.92971867,186.19,186.13,11.28707868]
[1736665743544,8.92971867,186.2,186.14,8.92971867]
[1736665748472,8.92971867,186.18,186.13,1.5517]
[1736665748645,8.92971867,186.17,186.13,1.5517]
[1736665751275,8.92971867,186.18,186.13,1.5517]
[1736665753576,8.92971867,186.15,186.13,1.5517]
[1736665753774,8.92971867,186.14,186.08,145.33721867]
[1736665753951,8.92971867,186.13,186.08,1.5075]
[1736665759080,8.92971867,186.12,186.08,1.5075]
[1736665759467,8.92971867,186.11,186.08,1.5075]
[1736665764965,8.92971867,186.11,186.05,8.92971867]
[1736665767495,8.92971867,186.1,186.05,8.92971867]
[1736665769105,8.92971867,186.1,186.04,156.12125163]
[1736665770597,8.92971867,186.09,186.04,147.19153296]
[1736665771137,8.92971867,186.1,186.04,156.12125163]
[1736665771410,8.92971867,186.1,186.05,8.92971867]
[1736665775307,8.92971867,186.09,186.04,156.12125163]
[1736665779174,8.92971867,186.1,186.04,156.12125163]
[1736665779919,20.0,186.13,186.05,8.92971867]
[1736665780091,20.0,186.13,186.07,8.92971867]
[1736665780420,8.1195,186.21,186.09,8.92971867]
[1736665780421,8.92971867,186.15,186.09,8.92971867]
[1736665785229,81.9,186.2,186.09,8.92971867]
[1736665785416,20.0,186.17,186.11,8.92971867]
[1736665785722,28.92971867,186.17,186.11,8.92971867]
[1736665785926,8.92971867,186.16,186.1,93.12201867]
[1736665788726,8.92971867,186.14,186.1,84.1923]
[1736665789027,8.92971867,186.12,186.06,93.12201867]
[1736665789830,8.92971867,186.12,186.06,84.1923]
[1736665790008,8.92971867,186.1,186.06,84.1923]
[1736665790505,8.92971867,186.09,186.06,84.1923]
[1736665793015,8.92971867,186.1,186.06,1.5923]
[1736665794329,8.92971867,186.09,186.04,147.19153296]
[1736665805328,8.92971867,186.06,186.04,64.59153296]
[1736665805503,8.92971867,186.05,186.04,64.59153296]
[1736665810927,8.92971867,186.08,186.04,64.59153296]
[1736665811146,8.92971867,186.09,186.04,64.59153296]
[1736665813920,8.92971867,186.08,186.04,64.59153296]
[1736665816015,8.92971867,186.05,186.04,64.59153296]
[1736665824408,32.70660267,186.05,186.04,64.59153296]
[1736665836431,23.776884,186.04,186.0,1.34]
[1736665836737,28.92971867,186.01,186.0,1.34]
[1736665838245,35.71887468,186.03,186.0,1.34]
[1736665838246,20.0,186.03,186.0,1.34]
[1736665838446,8.92971867,186.02,186.0,1.34]
[1736665838849,8.92971867,186.01,186.0,1.34]
[1736665839039,28.92971867,186.01,186.0,1.34]
[1736665845966,32.70660267,186.01,186.0,1.34]
[1736665846565,23.776884,186.01,186.0,1.34]
[1736665846869,32.70660267,186.01,186.0,1.34]
[1736665847381,37.70660267,186.01,186.0,1.34]
[1736665847877,32.70660267,186.01,186.0,1.34]
[1736665852251,23.776884,186.01,186.0,1.34]
[1736665852573,32.70660267,186.01,186.0,1.34]
[1736665853352,23.776884,186.01,186.0,1.34]
[1736665853556,32.70660267,186.01,186.0,1.34]
[1736665855852,8.92971867,186.01,186.0,1.34]
[1736665860279,20.0,186.03,186.0,1.34]
[1736665860478,8.92971867,186.01,186.0,1.34]
[1736665861193,20.0,186.03,186.0,1.34]
[1736665861375,8.92971867,186.01,186.0,1.34]
[1736665861764,8.92971867,186.02,186.0,1.34]
[1736665862368,28.92971867,186.03,186.0,1.34]
[1736665863277,8.92971867,186.02,186.0,1.34]
[1736665863479,8.92971867,186.01,186.0,1.34]
[1736665864069,8.92971867,186.02,186.0,1.34]
[1736665866175,23.776884,186.09,186.0,1.34]
[1736665866176,8.92971867,186.01,186.0,1.34]
[1736665871171,28.92971867,186.01,186.0,1.34]
[1736665872981,52.70660267,186.01,186.0,1.34]
[1736665885389,43.776884,186.01,186.0,1.34]
[1736665885592,52.70660267,186.01,186.0,1.34]
[1736665887199,81.9,186.02,186.0,1.34]
[1736665887397,8.92971867,186.01,186.0,1.34]
[1736665891419,32.70660267,186.01,186.0,1.34]
[1736665893518,43.776884,185.96,185.95,29.432702]
[1736665893716,52.70660267,185.96,185.95,29.432702]
[1736665894821,28.92971867,185.96,185.95,29.432702]
[1736665897100,52.70660267,185.96,185.95,29.432702]
[1736665898310,28.92971867,185.96,185.95,29.432702]
[1736665898824,8.92971867,185.96,185.95,29.432702]
[1736665908138,32.70660267,185.96,185.95,29.432702]
[1736665914037,32.70660267,185.96,185.95,1e-08]
[1736665914228,20.0,185.92,185.86,8.1134]
[1736665914424,8.92971867,185.87,185.86,8.1134]
[1736665915544,8.92971867,185.87,185.86,1.587]